bitfinex/quotes_SOLUSD_20241110
["timestamp","ask_amount","ask_price","bid_price","bid_amount"]
[1731214063232,19.583263,204.2,204.14,20.98846485]
[1731214063640,19.583263,204.2,204.14,0.2]
[1731214063931,19.583263,204.2,204.15,20.78846485]
[1731214064124,19.583263,204.2,204.15,0.2]
[1731214064736,20.78846485,204.19,204.15,0.2]
[1731214064917,20.78846485,204.17,204.15,0.2]
[1731214065118,20.78846485,204.17,204.1,20.78846485]
[1731214065119,20.78846485,204.17,204.11,0.2]
[1731214066019,20.78846485,204.17,204.1,20.78846485]
[1731214066338,40.78846485,204.19,204.1,20.78846485]
[1731214066839,20.0,204.19,204.13,20.78846485]
[1731214067240,40.78846485,204.19,204.11,20.78846485]
[1731214067537,20.0,204.19,204.13,20.78846485]
[1731214067716,40.78846485,204.19,204.11,20.78846485]
[1731214069636,40.78846485,204.19,204.09,20.78846485]
[1731214069637,20.87846484,204.17,204.09,20.78846485]
[1731214069941,20.0,204.19,204.11,20.78846485]
[1731214070541,19.583263,204.2,204.11,20.78846485]
[1731214070940,40.78846485,204.19,204.11,20.78846485]
[1731214071646,20.78846485,204.17,204.05,0.2]
[1731214071849,20.78846485,204.17,204.09,20.78846485]
[1731214072023,20.78846485,204.15,204.07,20.78846485]
[1731214072343,20.78846485,204.15,204.05,0.2]
[1731214072639,20.07389993,204.16,204.08,20.78846485]
[1731214073045,0.07389993,204.16,204.08,20.78846485]
[1731214073253,20.07389993,204.16,204.08,20.78846485]
[1731214074142,20.78846485,204.15,204.06,20.78846485]
[1731214074639,20.78846485,204.15,204.08,20.78846485]
[1731214074941,20.78846485,204.15,204.07,20.78846485]
[1731214075142,20.0,204.16,204.09,20.78846485]
[1731214075545,20.07389993,204.16,204.09,20.78846485]
[1731214075844,20.07389993,204.16,204.05,0.2]
[1731214075845,20.0,204.16,204.05,0.2]
[1731214076028,20.0,204.16,204.09,20.78846485]
[1731214076235,20.0,204.16,204.05,0.2]
[1731214076449,19.67326299,204.2,204.05,0.2]
[1731214076450,20.78846485,204.15,204.05,0.2]
[1731214076745,20.0,204.16,204.07,20.78846485]
[1731214077829,20.0,204.19,204.09,20.78846485]
[1731214078031,20.0,204.17,204.09,20.78846485]
[1731214079149,19.583263,204.2,204.05,0.2]
[1731214079150,14.7,204.09,204.05,0.2]
[1731214079335,20.86236478,204.13,204.05,20.98846485]
[1731214079646,20.0,204.14,204.07,20.78846485]
[1731214080150,20.0,204.15,203.98,0.1]
[1731214080447,20.0,204.15,204.07,20.78846485]
[1731214080849,40.86236478,204.15,203.98,6.97266904]
[1731214081030,20.78846485,204.13,204.04,20.78846485]
[1731214081232,40.86236478,204.15,204.06,20.78846485]
[1731214081431,20.0,204.12,204.04,20.78846485]
[1731214081729,20.0,204.12,203.93,20.3407]
[1731214081730,21.9007,204.16,204.08,20.78846485]
[1731214082051,20.78846485,204.14,204.06,20.78846485]
[1731214082953,20.07389993,204.13,204.04,20.78846485]
[1731214083449,20.0,204.13,204.04,20.78846485]
[1731214083624,20.07389993,204.13,204.04,20.78846485]
[1731214083829,20.0,204.13,204.04,20.78846485]
[1731214084025,20.07389993,204.13,204.04,20.78846485]
[1731214084256,20.0,204.13,204.04,20.78846485]
[1731214085349,20.0,204.13,204.06,20.78846485]
[1731214086036,20.78846485,204.14,204.06,20.78846485]
[1731214086354,20.0,204.15,204.06,20.78846485]
[1731214086534,20.0,204.15,204.08,20.78846485]
[1731214087134,20.78846485,204.14,204.06,20.78846485]
[1731214087335,12.95454982,204.14,204.05,12.95454982]
[1731214090454,3.65243398,204.13,204.05,12.95454982]
[1731214090653,12.95454982,204.12,204.05,12.95454982]
[1731214091341,12.95454982,204.12,204.03,12.95454982]
[1731214091949,12.95454982,204.14,204.07,12.95454982]
[1731214093260,12.95454982,204.14,204.05,12.95454982]
[1731214095054,12.95454982,204.14,204.07,12.95454982]
[1731214095662,20.0,204.15,204.09,12.95454982]
[1731214095856,21.9007,204.16,204.11,12.95454982]
[1731214097969,21.9007,204.16,204.09,12.95454982]
[1731214098748,12.95454982,204.14,204.06,12.95454982]
[1731214099053,12.95454982,204.14,204.04,12.95454982]
[1731214099759,12.95454982,204.12,204.04,12.95454982]
[1731214100161,12.95454982,204.14,204.04,12.95454982]
[1731214100960,12.95454982,204.12,204.04,12.95454982]
[1731214101641,20.0,204.13,204.04,12.95454982]
[1731214101960,20.0,204.13,204.08,12.95454982]
[1731214102261,32.95454982,204.15,204.06,12.95454982]
[1731214102449,33.02844975,204.15,204.06,12.95454982]
[1731214102845,21.9007,204.16,204.08,12.95454982]
[1731214103158,6.3092,204.16,204.1,12.95454982]
[1731214103367,12.95454982,204.17,204.08,12.95454982]
[1731214104260,12.95454982,204.17,204.02,6.84484366]
[1731214104458,12.95454982,204.15,204.07,12.95454982]
[1731214105459,12.95454982,204.17,204.07,12.95454982]
[1731214106564,12.95454982,204.14,204.05,12.95454982]
[1731214106863,21.8298,204.12,204.03,12.95454982]
[1731214107468,21.8298,204.12,204.05,12.95454982]
[1731214108448,21.8298,204.12,204.07,12.95454982]
[1731214109446,0.07389993,204.16,204.07,12.95454982]
[1731214109645,32.95454982,204.17,204.07,12.95454982]
[1731214109859,0.07389993,204.16,204.07,12.95454982]
[1731214110467,12.95454982,204.13,204.04,12.95454982]
[1731214113158,0.07389993,204.16,204.04,5.77512199]
[1731214113366,20.0,204.14,204.04,5.77512199]
[1731214113560,20.0,204.14,204.06,12.95454982]
[1731214114479,20.0,204.14,204.04,12.95454982]
[1731214114656,12.95454982,204.13,204.04,12.95454982]
[1731214115769,12.95454982,204.11,204.0,12.95454982]
[1731214115981,19.35954982,204.09,203.98,12.95454982]
[1731214116153,19.35954982,204.09,204.0,12.95454982]
[1731214116673,15.4248,204.08,203.93,16.1946]
[1731214116969,12.95454982,204.07,203.97,12.95454982]
[1731214117275,12.95454982,204.07,203.99,12.95454982]
[1731214120276,12.95454982,204.05,203.97,12.95454982]
[1731214120668,12.95454982,203.99,203.82,0.2]
[1731214120872,12.95454982,203.99,203.9,12.95454982]
[1731214122881,12.95454982,203.99,203.83,6.43463653]
[1731214123175,12.95454982,203.98,203.89,12.95454982]
[1731214126583,21.5737,204.0,203.93,12.95454982]
[1731214126783,21.5737,204.0,203.95,12.95454982]
[1731214128266,6.2625,204.0,203.97,12.95454982]
[1731214128470,20.0,204.04,203.99,12.95454982]
[1731214128675,15.3112,204.05,204.01,12.95454982]
[1731214129586,15.3112,204.05,203.91,15.2034]
[1731214129587,12.95454982,204.04,203.97,12.95454982]
[1731214132675,6.2625,204.06,204.01,12.95454982]
[1731214133781,12.95454982,204.07,203.93,0.1]
[1731214133988,12.95454982,204.03,203.91,15.2034]
[1731214134174,28.26574982,204.1,203.91,15.2034]
[1731214134175,20.07389993,204.09,203.91,15.2034]
[1731214134484,12.95454982,204.03,203.95,12.95454982]
[1731214137157,20.0,204.04,203.97,12.95454982]
[1731214137362,32.95454982,204.04,203.96,12.95454982]
[1731214138771,20.0,204.09,203.98,12.95454982]
[1731214138974,12.95454982,204.06,203.98,12.95454982]
[1731214139166,12.95454982,204.06,203.96,12.95454982]
[1731214139368,12.95454982,204.04,203.96,12.95454982]
[1731214139572,20.0,204.03,203.96,12.95454982]
[1731214141686,20.0,204.01,203.92,1.21]
[1731214141891,20.0,204.01,203.93,12.95454982]
[1731214142377,12.95454982,203.99,203.91,12.95454982]
[1731214143081,20.0,203.98,203.91,12.95454982]
[1731214143589,12.95454982,203.94,203.87,12.95454982]
[1731214143786,12.95454982,203.88,203.83,12.95454982]
[1731214143999,12.95454982,203.9,203.83,12.95454982]
[1731214144289,12.95454982,203.9,203.81,12.95454982]
[1731214144769,12.95454982,203.87,203.8,12.95454982]
[1731214145301,12.95454982,203.87,203.78,12.95454982]
[1731214145590,12.95454982,203.85,203.78,12.95454982]
[1731214145792,20.0,203.89,203.8,12.95454982]
[1731214145991,6.029,203.98,203.83,0.1]
[1731214146201,6.029,203.98,203.93,12.95454982]
[1731214146371,15.999,204.01,203.93,12.95454982]
[1731214146974,15.999,204.01,203.85,6.3854]
[1731214146975,15.999,204.01,203.95,12.95454982]
[1731214147889,15.999,204.01,203.93,12.95454982]
[1731214148197,6.029,204.03,203.98,12.95454982]
[1731214148399,6.029,204.03,203.92,6.97803653]
[1731214148573,6.029,204.03,203.96,12.95454982]
[1731214149099,12.95454982,204.01,203.92,12.95454982]
[1731214149391,12.95454982,204.0,203.92,12.95454982]
[1731214149596,20.0,203.97,203.89,12.95454982]
[1731214149773,32.95454982,203.97,203.89,12.95454982]
[1731214150091,32.95454982,203.97,203.87,12.95454982]
[1731214150406,18.98354982,203.93,203.78,16.4373]
[1731214150582,12.95454982,203.91,203.83,12.95454982]
[1731214150782,18.98354982,203.93,203.83,12.95454982]
[1731214151498,26.79707091,203.93,203.84,20.76807091]
[1731214151795,20.76807091,203.91,203.82,20.76807091]
[1731214152091,20.0,203.9,203.82,20.76807091]
[1731214152296,20.0,203.9,203.78,16.4373]
[1731214152473,20.76807091,203.89,203.81,20.76807091]
[1731214152875,20.76807091,203.87,203.73,16.4373]
[1731214153078,20.76807091,203.87,203.79,20.76807091]
[1731214153686,6.029,203.93,203.86,20.76807091]
[1731214153897,15.999,203.96,203.92,20.76807091]
[1731214154205,15.999,203.96,203.81,6.3854]
[1731214154206,6.029,203.98,203.9,20.76807091]
[1731214154572,20.76807091,203.97,203.88,20.76807091]
[1731214154781,6.029,203.98,203.86,20.76807091]
[1731214154990,20.76807091,203.94,203.79,16.4373]
[1731214155197,6.029,203.98,203.87,20.76807091]
[1731214155376,20.0,203.95,203.89,20.76807091]
[1731214155579,20.0,203.95,203.87,20.76807091]
[1731214156080,6.029,203.98,203.87,20.76807091]
[1731214156081,20.76807091,203.94,203.87,20.76807091]
[1731214156481,20.76807091,203.94,203.85,20.76807091]
[1731214156677,20.76807091,203.92,203.83,20.76807091]
[1731214157079,20.76807091,203.92,203.79,16.4373]
[1731214157080,20.76807091,203.95,203.87,20.76807091]
[1731214157287,20.76807091,203.93,203.79,16.5373]
[1731214157492,20.76807091,203.93,203.85,20.76807091]
[1731214158105,20.76807091,203.93,203.79,16.4373]
[1731214158274,20.76807091,203.93,203.86,20.76807091]
[1731214158479,20.76807091,203.95,203.88,20.76807091]
[1731214159784,20.76807091,203.93,203.86,20.76807091]
[1731214160184,20.76807091,203.95,203.88,20.76807091]
[1731214160395,6.6462,204.04,203.94,20.76807091]
[1731214160702,20.76807091,204.03,203.94,20.76807091]
[1731214160877,6.6462,204.04,203.98,20.76807091]
[1731214161083,20.76807091,204.06,203.98,20.76807091]
[1731214161297,20.76807091,203.99,203.94,1.4]
[1731214161690,20.76807091,203.97,203.94,1.4]
[1731214161891,20.76807091,203.95,203.86,6.4432]
[1731214162083,20.76807091,203.93,203.87,0.13]
[1731214162284,20.0,203.94,203.88,20.76807091]
[1731214162487,20.76807091,203.95,203.88,20.76807091]
[1731214162879,20.0,203.96,203.9,20.76807091]
[1731214163075,20.0,203.96,203.91,0.13]
[1731214163292,20.76807091,203.97,203.91,0.13]
[1731214163486,20.76807091,203.97,203.9,20.76807091]
[1731214163790,20.76807091,203.91,203.84,0.1]
[1731214163983,20.76807091,203.89,203.85,0.13]
[1731214164880,20.76807091,203.87,203.85,0.13]
[1731214165307,20.76807091,203.87,203.78,0.13]
[1731214165497,20.76807091,203.79,203.78,0.13]
[1731214166208,20.76807091,203.79,203.7,0.13]
[1731214166386,20.76807091,203.73,203.7,0.13]
[1731214166693,20.76807091,203.71,203.65,0.1]
[1731214166999,20.76807091,203.71,203.66,0.1]
[1731214167214,20.76807091,203.71,203.67,0.13]
[1731214168083,0.08999999,203.87,203.67,6.70551358]
[1731214168289,20.76807091,203.77,203.69,20.96807091]
[1731214168500,20.76807091,203.75,203.7,7.7574661]
[1731214168998,20.76807091,203.73,203.7,7.7574661]
[1731214169206,20.76807091,203.73,203.7,1.09]
[1731214169582,20.76807091,203.71,203.7,1.09]
[1731214169782,20.76807091,203.71,203.65,0.1]
[1731214170010,20.76807091,203.69,203.66,1.09]
[1731214170985,20.76807091,203.8,203.64,1.09]
[1731214170986,20.76807091,203.67,203.64,1.09]
[1731214171192,20.76807091,203.65,203.64,1.09]
[1731214171880,20.76807091,203.65,203.51,20.76807091]
[1731214172101,20.76807091,203.6,203.55,0.2]
[1731214172291,20.76807091,203.6,203.54,1.19]
[1731214172487,20.76807091,203.6,203.54,1.09]
[1731214172903,20.76807091,203.62,203.56,0.1]
[1731214173105,20.76807091,203.62,203.56,1.19]
[1731214173313,20.76807091,203.6,203.56,1.09]
[1731214173511,20.76807091,203.62,203.56,1.09]
[1731214174017,20.76807091,203.6,203.56,1.09]
[1731214175011,20.76807091,203.61,203.56,1.19]
[1731214175387,20.76807091,203.65,203.58,0.1]
[1731214176005,20.76807091,203.67,203.61,0.1]
[1731214176307,20.76807091,203.65,203.57,20.96807091]
[1731214176911,20.76807091,203.63,203.56,1.09]
[1731214178103,20.76807091,203.61,203.56,1.09]
[1731214178408,20.76807091,203.59,203.56,1.09]
[1731214179006,20.76807091,203.62,203.56,1.09]
[1731214179390,20.76807091,203.64,203.56,21.85807091]
[1731214179592,20.76807091,203.62,203.56,1.09]
[1731214180812,20.76807091,203.6,203.56,1.09]
[1731214181113,20.76807091,203.58,203.56,1.09]
[1731214181697,20.76807091,203.58,203.51,0.2]
[1731214182595,20.76807091,203.6,203.53,0.1]
[1731214182795,20.76807091,203.64,203.56,20.76807091]
[1731214182998,20.76807091,203.64,203.57,0.1]
[1731214183204,20.76807091,203.64,203.56,20.76807091]
[1731214183617,8.164531,203.67,203.56,20.76807091]
[1731214183813,20.76807091,203.71,203.62,20.76807091]
[1731214184417,20.76807091,203.69,203.6,20.76807091]
[1731214184615,20.76807091,203.69,203.6,20.86807091]
[1731214185195,20.76807091,203.69,203.6,20.76807091]
[1731214185408,20.76807091,203.69,203.6,20.86807091]
[1731214185604,20.76807091,203.69,203.62,20.76807091]
[1731214185908,20.76807091,203.69,203.6,20.86807091]
[1731214186309,20.76807091,203.69,203.6,20.76807091]
[1731214186608,20.76807091,203.69,203.6,20.86807091]
[1731214187689,20.76807091,203.71,203.62,20.76807091]
[1731214188602,20.76807091,203.69,203.62,20.76807091]
[1731214188805,20.76807091,203.67,203.58,20.76807091]
[1731214189210,20.76807091,203.65,203.56,26.77917091]
[1731214189412,20.76807091,203.67,203.58,20.76807091]
[1731214190405,20.76807091,203.65,203.56,20.76807091]
[1731214192598,20.76807091,203.59,203.5,25.98287073]
[1731214192798,20.76807091,203.57,203.5,20.76807091]
[1731214193004,26.96957091,203.7,203.5,20.76807091]
[1731214193005,20.76807091,203.59,203.5,20.76807091]
[1731214193214,20.76807091,203.59,203.51,0.1]
[1731214193406,20.76807091,203.59,203.5,20.76807091]
[1731214193895,20.76807091,203.57,203.5,20.76807091]
[1731214194096,20.76807091,203.55,203.46,20.76807091]
[1731214194424,20.76807091,203.55,203.48,20.76807091]
[1731214194633,20.76807091,203.55,203.48,20.86807091]
[1731214194921,6.2015,203.7,203.57,0.1]
[1731214195227,6.2015,203.7,203.56,0.1]
[1731214195228,20.76807091,203.69,203.61,20.76807091]
[1731214195523,20.76807091,203.69,203.59,20.76807091]
[1731214196006,20.76807091,203.69,203.56,0.1]
[1731214196007,20.76807091,203.61,203.52,12.13639731]
[1731214196207,20.76807091,203.61,203.52,20.86807091]
[1731214197120,20.76807091,203.63,203.55,20.76807091]
[1731214197506,20.76807091,203.63,203.53,20.76807091]
[1731214198106,20.76807091,203.63,203.49,21.0764]
[1731214198107,20.76807091,203.63,203.55,20.76807091]
[1731214198506,20.76807091,203.63,203.53,20.76807091]
[1731214199002,20.76807091,203.61,203.53,20.76807091]
[1731214199502,20.76807091,203.63,203.53,20.76807091]
[1731214200021,20.76807091,203.63,203.53,20.86807091]
[1731214201010,20.76807091,203.63,203.53,20.76807091]
[1731214201515,20.76807091,203.61,203.53,20.76807091]
[1731214202003,20.76807091,203.63,203.53,20.76807091]
[1731214202198,20.76807091,203.63,203.53,20.86807091]
[1731214202616,20.76807091,203.63,203.53,20.76807091]
[1731214203004,20.76807091,203.61,203.53,20.76807091]
[1731214203623,20.76807091,203.63,203.55,20.76807091]
[1731214204730,20.76807091,203.67,203.59,20.76807091]
[1731214205525,20.76807091,203.69,203.59,20.76807091]
[1731214205706,20.76807091,203.69,203.61,20.76807091]
[1731214205901,20.76807091,203.71,203.63,20.76807091]
[1731214206630,20.76807091,203.71,203.61,20.76807091]
[1731214207806,20.76807091,203.73,203.65,20.76807091]
[1731214209726,20.76807091,203.77,203.69,20.76807091]
[1731214209921,20.76807091,203.75,203.67,20.76807091]
[1731214210109,20.76807091,203.75,203.65,20.76807091]
[1731214210932,20.76807091,203.75,203.65,20.86807091]
[1731214211142,20.76807091,203.75,203.67,20.76807091]
[1731214211930,20.76807091,203.77,203.69,20.76807091]
[1731214212308,20.76807091,203.79,203.71,20.76807091]
[1731214212519,20.76807091,203.83,203.75,20.76807091]
[1731214212837,20.76807091,203.83,203.73,20.86807091]
[1731214212838,19.616324,203.79,203.73,20.86807091]
[1731214213036,20.76807091,203.83,203.73,20.86807091]
[1731214213750,20.76807091,203.81,203.73,20.86807091]
[1731214213919,20.76807091,203.79,203.72,6.1389]
[1731214214331,20.76807091,203.77,203.7,16.4326]
[1731214214930,20.76807091,203.75,203.7,16.4326]
[1731214215133,20.76807091,203.75,203.67,26.90697091]
[1731214216165,20.76807091,203.75,203.67,20.76807091]
[1731214216637,20.76807091,203.75,203.67,20.86807091]
[1731214217547,20.76807091,203.75,203.67,20.76807091]
[1731214217836,20.76807091,203.73,203.65,37.20067091]
[1731214218340,20.76807091,203.71,203.63,20.76807091]
[1731214218542,20.76807091,203.67,203.6,16.4326]
[1731214218740,20.76807091,203.67,203.59,20.76807091]
[1731214219124,20.76807091,203.67,203.6,0.1]
[1731214219426,20.76807091,203.69,203.59,20.76807091]
[1731214219625,20.76807091,203.69,203.6,0.1]
[1731214220041,20.76807091,203.69,203.61,20.76807091]
[1731214221743,20.76807091,203.71,203.63,20.76807091]
[1731214221939,20.76807091,203.71,203.64,0.1]
[1731214222143,20.76807091,203.71,203.63,20.76807091]
[1731214222344,20.76807091,203.73,203.63,20.76807091]
[1731214222529,20.76807091,203.73,203.65,20.76807091]
[1731214222835,20.76807091,203.69,203.61,20.76807091]
[1731214223152,20.76807091,203.67,203.59,20.76807091]
[1731214223450,20.76807091,203.69,203.59,20.76807091]
[1731214224246,20.76807091,203.65,203.57,26.90697091]
[1731214224436,20.76807091,203.67,203.59,20.76807091]
[1731214225055,20.76807091,203.69,203.59,20.76807091]
[1731214225237,20.76807091,203.69,203.61,20.76807091]
[1731214225551,20.76807091,203.71,203.61,20.86807091]
[1731214225933,20.76807091,203.73,203.65,20.76807091]
[1731214226156,26.88597091,203.75,203.65,20.76807091]
[1731214226446,20.76807091,203.73,203.65,20.76807091]
[1731214228449,20.76807091,203.7,203.63,20.76807091]
[1731214228646,15.0993,203.8,203.66,20.76807091]
[1731214228957,20.76807091,203.76,203.66,20.76807091]
[1731214229155,20.76807091,203.69,203.61,20.76807091]
[1731214229859,20.76807091,203.69,203.59,20.76807091]
[1731214230152,20.76807091,203.67,203.59,20.76807091]
[1731214231436,20.76807091,203.65,203.57,20.76807091]
[1731214232529,20.76807091,203.63,203.54,36.22777091]
[1731214233135,20.76807091,203.61,203.54,15.4597]
[1731214233434,20.76807091,203.59,203.52,6.4723]
[1731214235444,20.76807091,203.61,203.53,20.76807091]
[1731214235630,15.9912,203.7,203.55,20.76807091]
[1731214235830,15.9912,203.7,203.6,20.76807091]
[1731214236060,20.76807091,203.68,203.6,20.76807091]
[1731214236629,20.76807091,203.66,203.58,20.76807091]
[1731214237361,20.76807091,203.66,203.56,6.31805499]
[1731214237540,20.76807091,203.64,203.56,27.0861259]
[1731214237735,20.76807091,203.66,203.58,20.76807091]
[1731214238566,20.76807091,203.68,203.6,20.76807091]
[1731214239751,15.9912,203.7,203.6,20.76807091]
[1731214239936,20.76807091,203.68,203.6,20.76807091]
[1731214240246,15.9912,203.7,203.6,20.76807091]
[1731214240247,36.75927091,203.7,203.6,20.76807091]
[1731214240764,20.76807091,203.68,203.6,20.76807091]
[1731214241750,15.8647,203.85,203.67,20.76807091]
[1731214242051,20.76807091,203.76,203.67,20.76807091]
[1731214243062,15.8647,203.85,203.72,20.76807091]
[1731214243234,20.76807091,203.8,203.72,20.76807091]
[1731214243432,20.76807091,203.8,203.68,6.6141661]
[1731214243433,20.76807091,203.8,203.7,20.76807091]
[1731214244059,20.76807091,203.78,203.7,20.76807091]
[1731214244448,20.76807091,203.78,203.68,27.38223701]
[1731214244648,20.76807091,203.76,203.68,27.38223701]
[1731214244836,20.76807091,203.76,203.68,20.76807091]
[1731214245758,20.76807091,203.74,203.66,36.98327091]
[1731214246239,20.76807091,203.72,203.64,27.38223701]
[1731214246446,20.76807091,203.72,203.63,6.4519]
[1731214246644,20.76807091,203.72,203.62,20.76807091]
[1731214247165,20.76807091,203.8,203.62,20.76807091]
[1731214247166,20.76807091,203.8,203.7,20.76807091]
[1731214247462,20.76807091,203.76,203.68,20.76807091]
[1731214247844,20.76807091,203.74,203.66,20.76807091]
[1731214249767,20.76807091,203.76,203.66,27.38223701]
[1731214250653,20.76807091,203.74,203.66,27.38223701]
[1731214250943,20.76807091,203.72,203.62,20.76807091]
[1731214251172,20.76807091,203.73,203.64,20.76807091]
[1731214251851,20.76807091,203.73,203.66,20.76807091]
[1731214253251,20.76807091,203.73,203.64,20.76807091]
[1731214254953,20.76807091,203.75,203.66,20.76807091]
[1731214255346,20.76807091,203.75,203.67,20.0]
[1731214258148,20.76807091,203.77,203.7,20.76807091]
[1731214258673,15.8647,203.81,203.7,20.76807091]
[1731214258877,20.76807091,203.77,203.7,20.76807091]
[1731214259168,20.76807091,203.77,203.68,20.76807091]
[1731214259671,15.8647,203.81,203.72,20.76807091]
[1731214259672,36.63277091,203.81,203.72,20.76807091]
[1731214259969,20.76807091,203.81,203.74,20.76807091]
[1731214260353,20.76807091,203.83,203.74,20.76807091]
[1731214262659,20.76807091,203.79,203.73,20.0]
[1731214263066,20.76807091,203.79,203.72,20.76807091]
[1731214263386,20.76807091,203.77,203.7,20.76807091]
[1731214263875,20.76807091,203.77,203.68,20.76807091]
[1731214264379,6.3218,203.84,203.74,20.76807091]
[1731214264671,20.76807091,203.84,203.77,20.0]
[1731214265052,20.76807091,203.84,203.74,20.76807091]
[1731214266951,20.76807091,203.84,203.76,20.76807091]
[1731214268172,35.98587091,203.86,203.77,20.0]
[1731214268973,35.98587091,203.86,203.78,20.76807091]
[1731214269276,15.2178,203.86,203.79,20.0]
[1731214269463,15.2178,203.93,203.84,20.76807091]
[1731214269665,15.2178,203.93,203.87,20.76807091]
[1731214270057,34.819391,203.93,203.87,20.76807091]
[1731214270571,34.819391,203.93,203.85,6.24946105]
[1731214270572,19.601591,203.93,203.92,20.76807091]
[1731214270756,15.2178,204.01,203.92,20.76807091]
[1731214270950,15.2178,204.01,203.95,20.76807091]
[1731214271156,19.595111,204.0,203.95,20.76807091]
[1731214271378,6.4927,204.05,203.99,20.76807091]
[1731214271684,19.592132,204.01,203.95,20.76807091]
[1731214271890,40.36020291,204.01,203.91,20.76807091]
[1731214272175,20.76807091,203.99,203.91,20.76807091]
[1731214272567,19.592132,204.01,203.95,20.76807091]
[1731214272959,19.592132,204.01,203.93,20.76807091]
[1731214273286,19.592132,204.01,203.87,15.3982]
[1731214273287,19.592132,204.01,203.95,20.76807091]
[1731214273657,6.4927,204.05,203.91,0.1]
[1731214273658,6.4927,204.05,203.99,20.76807091]
[1731214273870,35.98587091,204.1,204.02,20.76807091]
[1731214274076,20.76807091,204.08,204.0,20.76807091]
[1731214274281,15.2178,204.1,203.98,20.76807091]
[1731214274492,19.588761,204.05,203.98,20.76807091]
[1731214274779,19.588761,204.05,203.93,6.24946105]
[1731214274780,19.588761,204.05,204.0,20.76807091]
[1731214275079,20.76807091,204.07,204.0,20.76807091]
[1731214275262,20.76807091,204.09,204.02,20.76807091]
[1731214275470,20.76807091,204.07,203.99,20.76807091]
[1731214275663,20.76807091,204.05,203.99,20.0]
[1731214277388,20.76807091,204.03,203.99,20.0]
[1731214278065,20.76807091,204.05,203.98,15.1982]
[1731214278265,20.76807091,204.03,203.98,15.1982]
[1731214278679,20.76807091,204.01,203.97,20.0]
[1731214279188,20.76807091,204.1,203.91,26.89217091]
[1731214279189,20.76807091,203.99,203.91,26.89217091]
[1731214279679,20.76807091,203.97,203.91,6.1241]
[1731214280587,20.76807091,203.97,203.89,20.76807091]
[1731214280588,20.76807091,203.95,203.88,16.1336]
[1731214280877,20.76807091,204.0,203.86,6.3132]
[1731214280878,20.76807091,203.93,203.86,6.3132]
[1731214281790,20.76807091,203.97,203.89,20.76807091]
[1731214282082,20.76807091,204.01,203.93,20.76807091]
[1731214282264,20.76807091,203.99,203.94,6.55279438]
[1731214282471,20.76807091,203.97,203.9,20.0]
[1731214282671,20.76807091,203.97,203.89,20.76807091]
[1731214282877,20.76807091,203.95,203.86,6.3132]
[1731214283900,20.76807091,203.91,203.83,36.90167091]
[1731214284182,20.76807091,203.89,203.82,6.55279438]
[1731214284383,20.76807091,203.89,203.8,6.3132]
[1731214284571,20.76807091,203.87,203.8,6.3132]
[1731214284896,20.76807091,203.87,203.79,20.76807091]
[1731214285268,20.76807091,203.85,203.77,27.32086529]
[1731214285476,20.76807091,203.81,203.73,20.76807091]
[1731214286074,20.76807091,203.79,203.71,20.76807091]
[1731214287690,20.76807091,203.79,203.72,20.0]
[1731214287879,20.76807091,203.85,203.77,20.76807091]
[1731214288083,20.76807091,203.85,203.78,20.0]
[1731214288481,20.76807091,203.86,203.78,20.0]
[1731214288683,20.76807091,203.84,203.77,20.0]
[1731214289001,20.76807091,203.86,203.77,20.0]
[1731214289495,20.76807091,203.86,203.78,20.76807091]
[1731214289873,20.76807091,203.86,203.79,6.55279438]
[1731214290084,20.76807091,203.84,203.78,20.0]
[1731214291097,20.76807091,203.9,203.81,20.76807091]
[1731214291475,20.76807091,203.9,203.81,27.32086529]
[1731214291982,20.76807091,203.9,203.81,20.76807091]
[1731214292979,6.0159,203.81,203.77,20.0]
[1731214293175,20.76807091,203.78,203.65,20.76807091]
[1731214293381,6.0159,203.81,203.69,20.76807091]
[1731214293573,20.76807091,203.79,203.69,20.76807091]
[1731214294079,26.78397091,203.81,203.71,20.76807091]
[1731214294276,20.76807091,203.81,203.72,6.06474114]
[1731214294688,20.76807091,203.81,203.73,20.0]
[1731214295176,0.08999999,203.92,203.8,20.76807091]
[1731214295177,21.0476,203.92,203.8,20.76807091]
[1731214295373,20.76807091,203.9,203.8,20.76807091]
[1731214295691,20.76807091,203.88,203.78,20.76807091]
[1731214296083,20.76807091,203.88,203.79,20.0]
[1731214296705,20.76807091,203.88,203.8,20.76807091]
[1731214297003,20.76807091,203.9,203.81,20.0]
[1731214297191,15.0317,203.97,203.85,20.0]
[1731214297192,20.76807091,203.94,203.85,20.0]